Cogmind - Beta 13 @@@ ROGUE MODE // 2024.05.21 @ 21:33:13 Player: Crackrock_Steady Result: Destroyed by X-62 Marksman with Gauss Rifle Performance ------------- Evolutions (2) 1000 Regions Visited (4) 800 Robots Destroyed (75) 375 Value Destroyed (2009) 2009 Prototype IDs (1) 20 Alien Tech Used (0) 0 Bonus (93) 93 TOTAL SCORE: 4297 Bonus ------- High Alert Combat Kills 93 Cogmind --------- Core Integrity 0/550 Matter 249/300 Energy 90/100 System Corruption 1% Temperature Cool (0) Movement Core (50) Location -8/Materials Parts ------- > --- POWER (1) -------- (None) > --- PROPULSION (2) --- (None) > --- UTILITY (6) ------ Improved Signal Interpreter Improved Targeting Computer Insulated Plating > --- WEAPON (2) ------- (None) > --- INVENTORY (5) ---- Improved Heat Sink Improved Sensor Array Hacking Suite Ion Cannon Peak State ------------ > --- POWER ------------ Nuclear Core > --- PROPULSION ------- Aluminum Leg Aluminum Leg > --- UTILITY ---------- Small Storage Unit Improved Signal Interpreter Improved Targeting Computer Heavy Armor Plating Hardened Medium Armor Plating > --- WEAPON ----------- Pulse Rifle Assault Cannon > --- INVENTORY -------- Improved Heat Sink Improved Sensor Array Heavy Armor Plating Insulated Plating Hacking Suite Heavy Particle Cannon Heavy Flail [Rating: 28] Favorites ----------- Power Ion Engine Engine Ion Engine Power Core Nuclear Core Propulsion Aluminum Leg Leg Aluminum Leg Utility Small Storage Unit Device Seismic Detector Storage Small Storage Unit Processor Improved Targeting Computer Protection Medium Armor Plating Weapon Autogun Energy Gun Pulse Rifle Energy Cannon Beam Cannon Ballistic Gun Autogun Ballistic Cannon Assault Cannon Launcher Grenade Launcher Impact Weapon Heavy Flail Build | -11 -10 -10 -9 -8 ------- Run | Yrd Mat Min Mat Mat Slots Evolved 4 | . . . 2 2 Power . | . . . . . Propulsion . | . . . . . Utility 4 | . . . 2 2 Weapon . | . . . . . Parts Attached 56 | 7 5 5 11 28 Power 7 | 1 . 1 2 3 Engine 6 | 1 . 1 2 2 Core 1 | . . . . 1 Reactor . | . . . . . Propulsion 9 | 2 2 . 2 3 Treads . | . . . . . Leg 9 | 2 2 . 2 3 Wheel . | . . . . . Hover . | . . . . . Flight . | . . . . . Utility 20 | 2 . 1 5 12 Device 4 | 1 . 1 1 1 Storage 1 | 1 . . . . Processor 4 | . . . 3 1 Hackware . | . . . . . Protection 11 | . . . 1 10 Artifact . | . . . . . Weapon 20 | 2 3 3 2 10 Energy Gun 5 | 1 1 1 . 2 Energy Cannon 4 | . . . 1 3 Ballistic Gun 5 | 1 1 . 1 2 Ballistic Cannon 2 | . . 1 . 1 Launcher 3 | . 1 1 . 1 Special Weapon . | . . . . . Impact Weapon 1 | . . . . 1 Slashing Weapon . | . . . . . Piercing Weapon . | . . . . . Special Melee Weapon . | . . . . . Unidentified Prototypes 1 | . . . . 1 Corrupted Parts 1 | . . . . 1 System Corruption 1 | . . . . 1 Parts Lost 25 | . 1 2 6 16 Power 4 | . . . 1 3 Propulsion 3 | . . . 1 2 Utility 9 | . . . 2 7 Weapon 9 | . 1 2 2 4 Highest Loss Streak 10 | . 1 2 5 10 To Critical Strikes . | . . . . . Average Slot Usage (%) 95 | . 99 98 96 93 Engine 9 | . 14 14 10 6 Leg 21 | . 28 28 20 17 Device 11 | . 14 14 18 5 Storage 10 | . 14 14 11 8 Processor 9 | . . . 5 18 Protection 10 | . . . 7 17 Energy Gun 8 | . 18 14 7 4 Energy Cannon 1 | . . . 3 1 Ballistic Gun 5 | . 9 . 3 6 Ballistic Cannon 3 | . . 7 . 4 Launcher 2 | . . 4 7 . Naked Turns . | . . . . . Heaviest Build 47 | 14 15 17 19 47 Greatest Support 27 | 20 20 20 20 27 Greatest Overweight (x) 10 | 1 . . 1 10 Average Overweight (x) . | . . . . . Largest Inventory Capacity 8 | 8 8 8 8 8 Average Capacity 7 | 7 8 8 8 7 Most Carried 8 | 4 5 8 8 8 Average Carried 6 | 2 3 6 6 7 Final Capacity 8 | 8 8 8 8 5 Final Carried 7 | 2 5 7 7 4 Class Distribution -------------------- 58% | Scavenger-Mutant 41% | Mutant Dominant Class ---------------- Mutant | -10/Materials Mutant | -10/Mines Scavenger-Mutant | -9/Materials Scavenger-Mutant | -8/Materials Resources | -11 -10 -10 -9 -8 ----------- Run | Yrd Mat Min Mat Mat Matter Collected 1267 | 281 63 106 282 535 Remotely . | . . . . . Salvage Created 2339 | 164 374 264 615 922 Parts 151 | 11 26 25 38 51 Haulers Intercepted . | . . . . . Recyclers Shooed 3 | . 1 . . 2 Parts Field Recycled . | . . . . . Retrieved Matter . | . . . . . Parts Self-Destructed . | . . . . . Prevented . | . . . . . Kills | -11 -10 -10 -9 -8 ------- Run | Yrd Mat Min Mat Mat Combat Hostiles Destroyed 51 | . 7 10 18 16 Guns 21 | . 6 3 5 7 Cannons 8 | . . 2 1 5 AOE 19 | . . 5 12 2 Classes Destroyed 12 | 2 5 1 3 1 Worker 3 | . 1 . 1 1 Builder 1 | . . . 1 . Tunneler 6 | 4 1 1 . . Recycler 5 | 1 . . 2 2 Mechanic 1 | . . . 1 . Operator 3 | . 1 . . 2 Watcher 5 | . 2 . 2 1 Swarmer 16 | . 3 6 7 . Grunt 22 | . 4 2 7 9 Duelist 1 | . . . 1 . Sentry 9 | . . 2 3 4 Specialist 3 | . . . . 3 Best Kill Streak 11 | 3 4 5 11 5 Combat Bots Only 9 | . 2 5 9 3 Max Kills in Single Turn 5 | 1 1 5 4 2 Gunslinging . | . . . . . Exploded 5 | . . 5 4 1 Melee . | . . . . . Uniques/NPCs Destroyed . | . . . . . Combat | -11 -10 -10 -9 -8 -------- Run | Yrd Mat Min Mat Mat Hostile Shots Fired 310 | . 40 35 36 199 Missed 68 | . 7 12 17 32 Damage Taken 4162 | . 463 282 516 2901 Core 870 | . 110 52 152 556 Absorbed by Shields 60 | . . . . 60 Core Remaining (%) 65 | 100 . 35 62 . Volleys Fired 173 | 18 38 17 38 62 Largest 2 | 2 2 2 2 2 Hottest 107 | 70 90 86 86 107 Shots Fired 310 | 36 68 26 66 114 Gun 234 | 36 68 17 38 75 Cannon 50 | . . 5 9 36 Launcher 26 | . . 4 19 3 Special . | . . . . . Kinetic 123 | 18 15 5 9 76 Thermal 111 | 18 15 5 38 35 Explosive 26 | . . 4 19 3 Electromagnetic 50 | . 38 12 . . Robot Hit Streak 17 | 7 7 7 17 9 Robot Miss Streak 3 | 3 3 2 2 2 Penetration Max . | . . . . . Secondary Targets 1 | . . . . 1 Max Gunslinging Chain 1 | . . . . 1 Shots Hit Robots 188 | 17 36 16 36 83 Core Hits 119 | 8 16 20 35 40 Critical Kills 1 | . . . . 1 Critical Parts Destroyed 2 | . . . . 2 Critical Strikes 6 | 1 . 1 . 4 Burn 2 | 1 . . . 1 Destroy 1 | . . . . 1 Corrupt 1 | . . 1 . . Smash 2 | . . . . 2 Melee Attacks 10 | . . . . 10 Impact 10 | . . . . 10 Slashing . | . . . . . Piercing . | . . . . . Sneak Attacks . | . . . . . Combat Hostiles . | . . . . . Follow-up Attacks . | . . . . . Damage Inflicted 5147 | 190 729 571 1579 2078 Guns 1993 | 183 483 151 385 791 Cannons 754 | . . 85 71 598 Explosions 1986 | . 244 331 1100 311 Melee 345 | . . . . 345 Ramming 69 | 7 2 4 23 33 Kinetic 1272 | 82 46 85 118 941 Thermal 1520 | 101 246 47 678 448 Explosive 1487 | . 85 331 760 311 Electromagnetic 454 | . 350 104 . . Impact 345 | . . . . 345 Slashing . | . . . . . Piercing . | . . . . . Highest Corruption 1 | . . . . 1 Average Corruption 1 | . . . . 1 Corruption Purged . | . . . . . Corruption Blocked . | . . . . . Overload Shots . | . . . . . Overflow Damage 220 | . . . 74 146 Projectiles 20 | . . . . 20 Explosions 74 | . . . 74 . Melee 126 | . . . . 126 Knockbacks 6 | . . 1 . 5 Impact 3 | . . . . 3 Kinetic 3 | . . 1 . 2 Secondary . | . . . . . Self-Inflicted Damage 209 | . 91 13 102 3 Shots 9 | . 2 1 6 . Rammed 1 | . . . . 1 Targets Rammed 14 | 3 1 1 3 6 Kicked 13 | 3 1 1 3 5 Crushed . | . . . . . Highest Temperature 540 | 80 329 78 135 540 Average Temperature 98 | 28 128 40 51 136 Received Heat Transfer 1426 | . 168 90 42 1126 Effects 17 | . 2 . . 15 Shutdowns 5 | . 1 . . 4 Energy Bleed 3 | . 1 . . 2 Interference 3 | . . . . 3 Matter Decay 3 | . . . . 3 Short Circuit 2 | . . . . 2 Damage (core) 1 | . . . . 1 Siege Activations . | . . . . . Robots Corrupted 1 | . 1 . . . Combat Hostiles 1 | . 1 . . . Parts Fried 5 | . . 1 . 4 Impact Corruptions 4 | . . . . 4 Robots Melted . | . . . . . Combat Hostiles . | . . . . . Parts Melted 3 | 1 . 1 1 . Heat Transferred 2692 | 370 359 111 964 888 Parts Sabotaged . | . . . . . Parts Stolen . | . . . . . Parts Stripped . | . . . . . Power Chain Reactions 2 | . 2 . . . Alert | -11 -10 -10 -9 -8 ------- Run | Yrd Mat Min Mat Mat Peak Influence 588 | 25 325 405 588 415 Initial 245 | . 16 126 79 245 Average 276 | 12 182 200 359 323 Maximum Alert Level 2 | . 1 2 2 2 Low Security (%) 30 | 100 56 58 39 . Level 1 50 | . 43 32 6 87 Level 2 19 | . . 9 53 12 Level 3 . | . . . . . Level 4 . | . . . . . Level 5 . | . . . . . High Security . | . . . . . Max Security . | . . . . . Squads Dispatched 10 | . 2 . 2 6 Investigation 4 | . 1 . 1 2 Extermination . | . . . . . Reinforcement 6 | . 1 . 1 4 Assault . | . . . . . Garrison . | . . . . . Intercept . | . . . . . Searches Triggered . | . . . . . Construction Impeded 1 | . . . 1 . Haulers Reinforced . | . . . . . Active Scanning Responses . | . . . . . Cargo Convoy Interrupts . | . . . . . Stealth | -11 -10 -10 -9 -8 --------- Run | Yrd Mat Min Mat Mat Distress Signals 6 | . 3 . 2 1 Communications Jammed . | . . . . . Distress Signals . | . . . . . Times Spotted 81 | . 16 11 20 34 Peak Tracking Total 7 | . 4 6 7 7 Tactical Retreats 4 | . 1 1 1 1 Traps | -11 -10 -10 -9 -8 ------- Run | Yrd Mat Min Mat Mat Traps Triggered 1 | . . . . 1 Indirectly . | . . . . . Trap Hack Attempts . | . . . . . Triggered . | . . . . . Disarmed . | . . . . . Reprogrammed 6 | . . . 6 . Reused . | . . . . . Traps Extracted . | . . . . . Installed . | . . . . . Triggered . | . . . . . Objects Rigged 2 | . . . 2 . Exploded 1 | . . . 1 . Machines | -11 -10 -10 -9 -8 ---------- Run | Yrd Mat Min Mat Mat Machines Disabled 10 | . 1 1 5 3 Max in Single Turn 2 | . 1 1 2 1 Machines Repaired . | . . . . . Machines Dismantled . | . . . . . Machines Sabotaged . | . . . . . Overloaded Fab Kills . | . . . . . Hacking | -11 -10 -10 -9 -8 --------- Run | Yrd Mat Min Mat Mat Machines Accessed 12 | . 2 . 6 4 Terminals 11 | . 2 . 6 3 Fabricators . | . . . . . Repair Stations . | . . . . . Recycling Units . | . . . . . Scanalyzers 1 | . . . . 1 Garrison Access . | . . . . . Total Hacks 49 | . 9 . 13 27 Successful 27 | . 3 . 5 19 Failed 21 | . 6 . 7 8 Catastrophic 5 | . . . 2 3 Database Lockouts 1 | . . . 1 . Manual 19 | . 7 . 10 2 Terminals 35 | . 9 . 13 13 Fabricators . | . . . . . Repair Stations . | . . . . . Recycling Units . | . . . . . Scanalyzers 14 | . . . . 14 Garrison Access . | . . . . . Terminal Hacks 12 | . 3 . 3 6 Record 5 | . . . . 5 Robot Analysis 5 | . 3 . 1 1 Reprogram Traps 1 | . . . 1 . Zone Layout 1 | . . . 1 . Fabricator Hacks . | . . . . . Repair Station Hacks . | . . . . . Recycling Unit Hacks . | . . . . . Scanalyzer 13 | . . . . 13 Insert Component 5 | . . . . 5 Analyze 8 | . . . . 8 Garrison Access Hacks . | . . . . . Unauthorized Hacks 2 | . . . 2 . Terminals 2 | . . . 2 . Detonate 2 | . . . 2 . Fabricators . | . . . . . Repair Stations . | . . . . . Recycling Units . | . . . . . Scanalyzers . | . . . . . Garrison Access . | . . . . . Data Cores Recovered . | . . . . . Used . | . . . . . Hacking Detections 9 | . 2 . 3 4 Full Trace Events 6 | . 2 . 2 2 Feedback Events . | . . . . . Feedback Blocked . | . . . . . Robot Schematics Acquired . | . . . . . Robots Built . | . . . . . Authchips . | . . . . . Time . | . . . . . Total Robot Build Rating . | . . . . . Part Schematics Acquired 5 | . . . . 5 Parts Built . | . . . . . Authchips . | . . . . . Time . | . . . . . Total Part Build Rating . | . . . . . Parts Repaired . | . . . . . Time . | . . . . . Parts Recycled . | . . . . . Recycled Matter . | . . . . . Retrieved Matter . | . . . . . Retrieved Components . | . . . . . Parts Scanalyzed 5 | . . . . 5 Part Schematics Acquired 5 | . . . . 5 Parts Damaged . | . . . . . Bothacking | -11 -10 -10 -9 -8 ------------ Run | Yrd Mat Min Mat Mat Used RIF Installer . | . . . . . Robots Hacked . | . . . . . Non-combat . | . . . . . Combat . | . . . . . Robot Hacks Applied . | . . . . . Relay Couplers Released . | . . . . . Fabnet Peak Effective % . | . . . . . Robots Rewired . | . . . . . Allies Hacked . | . . . . . Hacks Repelled . | . . . . . Allies | -11 -10 -10 -9 -8 -------- Run | Yrd Mat Min Mat Mat Total Allies . | . . . . . Largest Group . | . . . . . Highest-Rated Group . | . . . . . Highest-Rated Ally . | . . . . . Total Orders . | . . . . . Ally Attacks . | . . . . . Total Damage . | . . . . . Kills . | . . . . . Allies Corrupted . | . . . . . Allies Melted . | . . . . . Intel | -11 -10 -10 -9 -8 ------- Run | Yrd Mat Min Mat Mat Robot Analysis Total 5 | . 3 . 1 1 Derelict Logs Recovered 1 | . . 1 . . Drone Launches . | . . . . . Drone Recoveries . | . . . . . Exploration | -11 -10 -10 -9 -8 ------------- Run | Yrd Mat Min Mat Mat Turns Passed 3229 | 211 386 471 741 1420 Spaces Moved 1631 | 115 217 339 341 619 Core 19 | 9 . . . 10 Treads . | . . . . . Legs 1612 | 106 217 339 341 609 Wheels . | . . . . . Hover . | . . . . . Flight . | . . . . . Fastest Speed 50 | 50 120 120 120 50 Average Speed 141 | 123 120 120 123 173 Slowest Speed 550 | 190 120 120 190 550 Overloaded Moves . | . . . . . Propulsion Burnouts . | . . . . . Robots Hopped . | . . . . . Cave-ins Triggered . | . . . . . Exploration Rate (%) 35 | 5 37 53 43 38 Regions Visited 4 Branch Regions 1 Pre-discovered Areas . | . . . . . Known Exits Taken 1 | . . . 1 . Unknown Exits Taken 3 | 1 1 1 . . Scrap Searched 3 | . . 3 . . Spaces Dug . | . . . . . Terrain Destroyed 216 | . 33 38 135 10 Melee . | . . . . . Projectile 3 | . . . . 3 AOE 213 | . 33 38 135 7 Terrain Rammed . | . . . . . Walls Destroyed . | . . . . . Machines Disabled . | . . . . . Actions | -11 -10 -10 -9 -8 --------- Run | Yrd Mat Min Mat Mat Total 2242 | 151 276 377 594 844 Wait 284 | . 10 4 191 79 Move 1627 | 114 216 338 340 619 Hop . | . . . . . Pick Up 50 | 9 5 8 10 18 Fast Attach 7 | . . . . 7 Attach 29 | 7 1 2 8 11 Detach . | . . . . . Swap 20 | . 4 3 3 10 Drop 28 | . 1 4 1 22 Fire 173 | 18 38 17 38 62 Melee 10 | . . . . 10 Ram 1 | . . . . 1 Kick 13 | 3 1 1 3 5 Crush . | . . . . . Escape Stasis . | . . . . . Rewire . | . . . . . Trap . | . . . . . Miscellaneous . | . . . . . Route ------- -11/Scrapyard -10/Materials -10/Mines -9/Materials (discovered 2 exits: *Mat / Sto) -8/Materials History --------- Turn | Location | Event 20 | -11/Scrapyard | Discovered new exit (range 16) 212 | -11/Scrapyard | Entered Materials 309 | -10/Materials | Build established: Mutant 466 | -10/Materials | Discovered new exit (range 16) 598 | -10/Materials | Entered Mines 744 | -10/Mines | Core integrity fell below 50% 1023 | -10/Mines | Discovered new exit (range 10) 1069 | -10/Mines | Entered Materials 1069 | -9/Materials | Evolved 2 slots: Utility x2 1070 | -9/Materials | Identified exit to Storage 1125 | -9/Materials | Central database locked down 1186 | -9/Materials | Build established: Scavenger-Mutant 1424 | -9/Materials | Destroyed 9 combat bots 1614 | -9/Materials | Lost 5 parts (1p2u2w) 1769 | -9/Materials | Discovered new exit (range 4) 1809 | -9/Materials | Identified exit to Materials 1810 | -9/Materials | Entered another Materials area 1810 | -8/Materials | Evolved 2 slots: Utility x2 2367 | -8/Materials | Lost 5 parts (1p3u1w) 3156 | -8/Materials | Core integrity fell below 50% 3157 | -8/Materials | Build established: Mutant 3222 | -8/Materials | Core integrity fell below 20% 3230 | -8/Materials | Destroyed by X-62 Marksman with Gauss Rifle Last Messages --------------- 03218_ Acquired 8 matter. 03218_ Destroyed Armor Integrity Analyzer. 03218_ X-62 Marksman system corrupted by crushing effect. 03218_ X-62 Marksman knocked back. 03220_ Penetrated by Slug. 03222_ U-05 Engineer builds a Door. 03223_ X-62 Marksman misfires. 03223_ X-62 Marksman suffers critical hit (Smash). 03223_ Destroyed Targeting Computer. 03223_ X-62 Marksman system corrupted by crushing effect. 03224_ X-62 Marksman system terminally corrupted. 03224_ Imp. Carbon-fiber Leg fried. 03224_ Adv. Visual Processing Unit fried. 03224_ Imp. Cooling System fried. 03227_ Hvy. Flail destroyed. 03229_ Slammed into U-05 Engineer. Map ----- +----------------------------------------------------+ | | | | | | | | | | | | | | | | | | | | | | | | | | | | | | | | | | | ?????????????????????????????????????????????????? | | ?????????????????????????????????????????????????? | | ???????????????????????########??????????????????? | | #####????????????####### #??????????????????? | | #??????####??# k # #??????????????????? | | ##############=| #= """#??????????????????? | | !! # %%![%=* !%!! u[ x""#??????????????????? | | ![ # !#########*! # """#??????????????????? | | # #???????# # @[g #??????????????????? | | + #???????#########g#;##??????????????????? | | # % #??????????????? % #??????????????????? | | # #+#??????????????? #??????????????????? | | #####% #???????????????? g#??????????????????? | | ##### #????????????????" """ w ?????????????????? | | + #???????????????"" """ # ????????????????? | | ##### #???????????????"" """ #H ???????????????? | | #???# +?????????????? #? ??????????????? | | #???#^ #??????????????? ? #?? ?????????????? | | #???# #???????????????###???????? ????????????? | | #???# #??????????????????????????? ????????????? | | ###?# #?????????????????????????????????????????? | | !!#?# #?????????????????????????????????????????? | | !!#?# #?????????????????????????????????????????? | | ### ##????????????????????????????????????????? | | ## #????????????????????????????????????????? | | #????????????????????????????????????????? | | % #????????????????????????????????????????? | | #### #????????????????????????????????????????? | | #??# ###########???????????????????????????????? | | #??# # ! #???????????????????????????????? | | #### # = #???????????????????????????????? | | + # #???????????????????????????????? | | #### +=""" """ #???????????????????????????????? | +----------------------------------------------------+ Best States ------------- Heat Dissipation 31 Energy Generation 16 Energy Capacity 290 Matter Stores 300 Matter Capacity 300 Sight Range 16 Robot Scan Range 14 Terrain Scan Density 10 Armor Coverage 825 Resistance: EM 15 Evasion (%) 55 Targeting Accuracy 6 Salvage Targeting 1 Item Schematics ----------------- Hvy. Flail | -8/Materials | Scanalyzed VTOL Module | -8/Materials | Scanalyzed Pulse Rifle | -8/Materials | Scanalyzed Hvy. Armor Plating | -8/Materials | Scanalyzed Hacking Suite | -8/Materials | Scanalyzed Robot Schematics ------------------ None Fabricated ------------ Nothing Alien Tech Used ----------------- None Achievements -------------- Power Corrupts Challenges ------------ None Game ------ Seed DeuteriumTrapDeconstructor Manual? 0 Play Time 00:34:18 Cumulative 18.1 hours Start 2024.05.21 @ 20:57:44 End 2024.05.21 @ 21:33:13 Sessions 1 Manual Loads 0 Difficulty Rogue Special Mode None Game No. 41 Rogue 41 Adventurer 0 Explorer 0 Win Type - Total 0 Types 0/0/0/0/0/0/0/0/0 Lore% 25 Gallery% 21 Achievement% 21 Wizard Run 0 Options --------- Layout 1 ASCII 0 Keyboard 0 Movement Mouse Keybinds 0 Fullscreen 1 Font 24/Smallcaps Map View 50x35 Zoom Use 0% Tactical HUD 1 Map Filters NONE Filters NONE Steam 1 RUN: 90247c27-1abe-4c65-8573-ba1cf8749af3